bitfinex/quotes_SOLUSD_20220109
["timestamp","ask_amount","ask_price","bid_price","bid_amount"]
[1641720782031,10.10510966,139.31,139.25,20.78654391]
[1641720782232,20.88030966,139.31,139.25,20.78654391]
[1641720782433,20.88030966,139.31,139.24,10.38]
[1641720782634,3.0,139.3,139.22,24.7075]
[1641720783333,3.0,139.3,139.22,40.71764495]
[1641720783534,4.07059413,139.29,139.22,40.71764495]
[1641720784136,4.07059413,139.29,139.23,0.25]
[1641720784338,10.7774,139.28,139.22,40.71764495]
[1641720784739,10.7774,139.28,139.22,16.01014495]
[1641720785038,4.07059413,139.27,139.22,16.01014495]
[1641720785641,14.84909413,139.27,139.2,34.972]
[1641720785841,14.84909413,139.27,139.2,24.1935]
[1641720786040,3.0,139.26,139.2,24.1935]
[1641720786241,4.07059413,139.26,139.2,24.1935]
[1641720786441,4.07059413,139.26,139.19,10.38]
[1641720786640,4.07059413,139.26,139.2,16.9469347]
[1641720787042,6.03451553,139.29,139.2,16.9469347]
[1641720787242,10.779,139.26,139.2,16.9469347]
[1641720788369,4.07059413,139.25,139.2,16.9469347]
[1641720788571,14.85069413,139.25,139.2,16.9469347]
[1641720789372,4.07059413,139.28,139.2,16.9469347]
[1641720789569,10.7782,139.27,139.2,16.9469347]
[1641720790073,3.0,139.26,139.2,16.9469347]
[1641720790677,3.0,139.27,139.2,16.9469347]
[1641720790873,3.0,139.27,139.21,0.25]
[1641720791074,3.0,139.27,139.21,3.25]
[1641720791274,4.07059413,139.26,139.24,10.7743]
[1641720791474,4.07059413,139.26,139.25,37.97435663]
[1641720791876,4.07059413,139.26,139.25,38.22435663]
[1641720792077,4.07059413,139.3,139.25,38.22435663]
[1641720792278,4.07059413,139.3,139.25,51.99825663]
[1641720792478,4.07059413,139.3,139.26,5.16345313]
[1641720792679,4.07059413,139.3,139.26,5.23345313]
[1641720792878,104.86883395,139.38,139.26,5.23345313]
[1641720792879,6.03451553,139.33,139.26,5.23345313]
[1641720793479,6.03451553,139.33,139.26,4.97345313]
[1641720793678,6.03451553,139.35,139.29,10.7699]
[1641720793880,6.03451553,139.35,139.3,16.9469347]
[1641720795084,6.03451553,139.35,139.3,1e-08]
[1641720796283,6.03451553,139.35,139.3,10.77080001]
[1641720796883,6.03451553,139.36,139.31,10.63]
[1641720797287,6.03451553,139.36,139.33,10.7684]
[1641720797684,6.03451553,139.36,139.33,16.1144]
[1641720797886,6.03451553,139.36,139.33,26.4944]
[1641720798285,6.03451553,139.36,139.34,3.76176986]
[1641720798486,6.03451553,139.36,139.35,46.1456]
[1641720798714,6.03451553,139.4,139.35,46.1456]
[1641720799115,3.0,139.39,139.35,46.1456]
[1641720799316,3.0,139.39,139.36,0.25]
[1641720799516,3.0,139.39,139.37,10.7649]
[1641720799817,3.0,139.39,139.34,3.76176986]
[1641720800016,3.0,139.41,139.34,3.76176986]
[1641720800216,3.0,139.41,139.35,10.38]
[1641720800417,4.07059413,139.38,139.35,10.38]
[1641720800817,4.07059413,139.38,139.35,21.1467]
[1641720801218,4.07059413,139.4,139.35,21.1467]
[1641720801615,3.0,139.39,139.35,21.1467]
[1641720801817,3.0,139.39,139.35,10.38]
[1641720802517,4.07059413,139.38,139.35,10.38]
[1641720803120,6.06439994,139.37,139.35,21.1468]
[1641720803323,2.02529949,139.36,139.35,21.1468]
[1641720803724,2.02529949,139.36,139.35,21.3968]
[1641720803924,8.08969943,139.37,139.35,21.3968]
[1641720804320,2.02529949,139.37,139.36,31.0]
[1641720804522,2.02529949,139.38,139.36,41.7651]
[1641720804821,2.02529949,139.38,139.37,1.21258678]
[1641720805120,2.02529949,139.38,139.37,1.46258678]
[1641720805321,2.02529949,139.38,139.37,1.21258678]
[1641720805721,2.02529949,139.38,139.35,10.38]
[1641720805922,3.0,139.41,139.35,10.38]
[1641720806122,4.04716877,139.4,139.35,10.38]
[1641720806326,4.04716877,139.4,139.32,10.38]
[1641720806522,3.0,139.39,139.32,10.38]
[1641720806722,2.02255186,139.37,139.32,10.38]
[1641720807126,3.0,139.36,139.27,40.17425414]
[1641720807324,3.0,139.36,139.27,32.9191]
[1641720807526,5.02255186,139.36,139.27,32.9191]
[1641720807724,10.7738,139.33,139.27,32.9191]
[1641720808024,2.02255186,139.36,139.28,4.65971]
[1641720808223,2.02255186,139.34,139.28,4.65971]
[1641720808424,2.02255186,139.34,139.29,0.25]
[1641720808826,2.02255186,139.34,139.29,12.28345313]
[1641720809023,2.02255186,139.36,139.29,27.62654146]
[1641720809224,2.02255186,139.36,139.29,25.97308833]
[1641720809624,2.02255186,139.36,139.3,1.65345313]
[1641720809825,2.02255186,139.36,139.29,25.97308833]
[1641720809826,2.02255186,139.38,139.31,21.1492]
[1641720810024,2.02255186,139.38,139.31,21.3992]
[1641720810227,2.02255186,139.38,139.31,21.1492]
[1641720810427,2.02255186,139.38,139.32,0.25]
[1641720811025,2.02255186,139.38,139.31,10.38]
[1641720811228,2.02255186,139.38,139.32,0.25]
[1641720812531,2.02255186,139.37,139.33,10.38]
[1641720812929,2.02255186,139.37,139.34,0.25]
[1641720813229,35.82,139.44,139.35,10.7663]
[1641720813230,2.02255186,139.39,139.35,10.7663]
[1641720813528,2.02255186,139.39,139.34,0.25]
[1641720813731,2.02255186,139.39,139.33,10.38]
[1641720813932,2.02255186,139.4,139.33,10.38]
[1641720814134,2.02255186,139.4,139.34,0.25]
[1641720814333,3.0,139.39,139.34,0.25]
[1641720814733,5.02255186,139.39,139.34,0.25]
[1641720814934,2.02255186,139.39,139.35,10.7667]
[1641720816436,2.02255186,139.39,139.36,0.25]
[1641720816636,2.02255186,139.39,139.36,11.0159]
[1641720816835,2.02255186,139.38,139.36,11.0159]
[1641720817236,2.02255186,139.38,139.36,10.7659]
[1641720819140,2.02255186,139.37,139.36,10.7659]
[1641720819339,4.04876366,139.41,139.36,70.7659]
[1641720819540,4.04876366,139.41,139.37,3.0]
[1641720819742,6.03451553,139.45,139.4,43.0]
[1641720819941,6.03451553,139.45,139.41,0.25]
[1641720820742,6.39473662,139.48,139.43,10.7606]
[1641720821645,0.36022109,139.48,139.41,0.25]
[1641720822243,0.36022109,139.48,139.42,21.141]
[1641720824047,0.36022109,139.48,139.42,10.38]
[1641720824247,0.36022109,139.48,139.38,10.38]
[1641720824846,6.03451553,139.46,139.38,10.38]
[1641720825047,3.0,139.45,139.38,21.1444]
[1641720825646,9.18451553,139.46,139.38,21.1444]
[1641720825847,3.0,139.45,139.38,21.1444]
[1641720827350,16.79851553,139.46,139.38,21.1444]
[1641720827549,6.03451553,139.46,139.38,21.1444]
[1641720827947,6.03451553,139.46,139.39,3.25]
[1641720828147,6.03451553,139.46,139.41,10.7618]
[1641720829153,6.03451553,139.47,139.41,10.7618]
[1641720829754,6.03451553,139.47,139.41,7.67841017]
[1641720830154,6.03451553,139.47,139.42,0.25]
[1641720830356,6.03451553,139.47,139.44,10.7599]
[1641720830555,3.03219997,139.46,139.44,10.7599]
[1641720831557,3.03219997,139.46,139.43,10.7605]
[1641720831759,3.03219997,139.45,139.43,10.7605]
[1641720832156,3.03219997,139.44,139.43,10.7605]
[1641720832881,3.03219997,139.45,139.43,11.0105]
[1641720833086,0.36022109,139.48,139.43,10.7605]
[1641720833483,0.36022109,139.48,139.43,27.9195]
[1641720833686,6.03451553,139.49,139.45,27.0]
[1641720833887,6.03451553,139.49,139.47,10.7529]
[1641720834084,8.10805008,139.5,139.47,10.7529]
[1641720834484,94.7,139.51,139.47,10.7529]
[1641720835689,23.99801742,139.58,139.47,10.7529]
[1641720835887,24.4273,139.57,139.47,10.7529]
[1641720836087,3.0,139.56,139.47,10.7529]
[1641720836690,26.7773,139.57,139.48,0.25]
[1641720837590,24.4273,139.57,139.48,7.82]
[1641720837793,112.0416,139.59,139.52,10.7535]
[1641720837991,10.16883395,139.63,139.53,3.0]
[1641720838391,10.16883395,139.63,139.54,0.25]
[1641720838994,8.08869952,139.63,139.58,10.7445]
[1641720839892,8.08869952,139.64,139.58,10.7445]
[1641720840695,43.67805037,139.67,139.58,10.7445]
[1641720841094,3.0,139.66,139.58,10.7445]
[1641720841493,11.08869952,139.66,139.58,10.7445]
[1641720841693,11.08869952,139.66,139.57,10.7473]
[1641720842095,11.08869952,139.66,139.57,0.0028]
[1641720842494,24.98569952,139.66,139.55,3.0]
[1641720842696,24.98569952,139.66,139.56,10.7474]
[1641720843895,24.98569952,139.66,139.57,0.25]
[1641720844094,24.98569952,139.66,139.57,10.997]
[1641720844296,6.15,139.66,139.57,10.747]
[1641720845198,16.8971,139.66,139.55,13.38]
[1641720845399,16.8971,139.66,139.56,0.25]
[1641720845898,16.8971,139.66,139.55,10.38]
[1641720846099,16.8971,139.66,139.53,85.5921]
[1641720846699,24.94806383,139.66,139.53,10.38]
[1641720846899,26.5541152,139.66,139.53,10.38]
[1641720847100,24.94806383,139.66,139.53,10.38]
[1641720847700,30.173721,139.65,139.53,10.38]
[1641720847900,10.7526,139.59,139.5,10.38]
[1641720848102,31.68766263,139.58,139.45,10.38]
[1641720848302,46.673714,139.58,139.43,120.207]
[1641720848705,1.60605137,139.57,139.43,120.207]
[1641720848902,1.60605137,139.57,139.44,10.38]
[1641720849102,3.0,139.56,139.44,10.38]
[1641720849302,42.06766263,139.58,139.44,10.38]
[1641720849503,3.0,139.57,139.45,3.0]
[1641720849703,3.15,139.56,139.49,10.7527]
[1641720849906,3.15,139.56,139.46,35.8424]
[1641720850405,3.15,139.56,139.47,3.0]
[1641720850606,10.7524,139.59,139.47,3.0]
[1641720850809,3.0,139.58,139.47,3.0]
[1641720851006,10.7524,139.59,139.48,10.38]
[1641720851236,56.8625,139.6,139.48,18.606]
[1641720851437,56.8625,139.6,139.49,3.0]
[1641720851638,56.8625,139.6,139.5,10.38]
[1641720851837,56.8625,139.6,139.5,10.63]
[1641720852637,46.1111,139.6,139.52,10.751]
[1641720852839,82.9362,139.61,139.52,10.751]
[1641720853038,82.9362,139.61,139.53,0.25]
[1641720853238,82.9362,139.61,139.52,10.751]
[1641720853438,23.967213,139.62,139.52,10.751]
[1641720853638,10.7507,139.61,139.5,24.5199]
[1641720853841,13.7507,139.61,139.5,24.5199]
[1641720854738,16.9007,139.61,139.5,24.5199]
[1641720855941,16.9007,139.61,139.51,0.25]
[1641720856241,16.9007,139.61,139.51,11.0019]
[1641720859247,16.9007,139.61,139.51,0.25]
[1641720860750,24.98377881,139.61,139.51,0.25]
[1641720861748,4.04693588,139.56,139.51,0.25]
[1641720862348,4.04693588,139.57,139.51,0.25]
[1641720863151,4.04693588,139.55,139.51,0.25]
[1641720863552,4.04693588,139.55,139.5,0.25]
[1641720863750,4.04693588,139.55,139.5,3.25]
[1641720864250,4.04693588,139.55,139.52,10.7511]
[1641720864852,4.04693588,139.55,139.5,0.25]
[1641720865251,4.04693588,139.54,139.5,0.25]
[1641720865452,4.04693588,139.54,139.5,11.0022]
[1641720866651,4.04693588,139.54,139.5,0.25]
[1641720867655,4.04693588,139.54,139.49,11.0032]
[1641720868555,4.04693588,139.54,139.49,10.7532]
[1641720869656,4.04693588,139.53,139.49,10.7532]
[1641720870479,4.04693588,139.53,139.48,21.1344]
[1641720870682,4.04693588,139.53,139.49,0.25]
[1641720871483,4.04693588,139.53,139.49,11.0037]
[1641720872384,4.04693588,139.52,139.49,11.0037]
[1641720872583,4.04693588,139.52,139.49,0.25]
[1641720873486,3.03219997,139.51,139.49,0.25]
[1641720873687,4.04693588,139.52,139.49,0.25]
[1641720873890,4.04693588,139.52,139.47,0.25]
[1641720874688,14.80443588,139.52,139.47,0.25]
[1641720875588,4.04693588,139.51,139.47,0.25]
[1641720876288,4.04693588,139.51,139.47,11.0052]
[1641720876590,4.04693588,139.51,139.47,10.7552]
[1641720876992,4.04693588,139.51,139.46,0.25]
[1641720878892,4.04693588,139.51,139.48,10.7548]
[1641720879494,4.04693588,139.52,139.49,0.25]
[1641720880798,4.04693588,139.52,139.47,11.0055]
[1641720881594,4.04693588,139.52,139.47,0.25]
[1641720881796,30.42289236,139.52,139.44,33.9921]
[1641720881994,30.42289236,139.52,139.44,23.6121]
[1641720882395,3.0,139.51,139.41,10.38]
[1641720882596,10.7594,139.5,139.42,10.7593]
[1641720882797,4.04693588,139.49,139.42,10.7593]
[1641720883400,4.04693588,139.49,139.43,0.25]
[1641720883698,14.80653588,139.49,139.43,0.25]
[1641720884198,14.80653588,139.49,139.43,11.0092]
[1641720884398,14.80653588,139.49,139.44,0.25]
[1641720884599,4.04693588,139.49,139.44,0.25]
[1641720885500,4.04693588,139.5,139.44,0.25]
[1641720885800,4.04693588,139.5,139.43,11.0093]
[1641720886003,13.76,139.49,139.42,3.0]
[1641720886202,36.0058786,139.5,139.4,97.9715]
[1641720886400,36.0058786,139.5,139.38,46.2473]
[1641720886401,8.984263,139.49,139.39,10.7621]
[1641720886601,3.0,139.49,139.38,24.482]
[1641720886903,6.15,139.49,139.38,24.482]
[1641720887102,10.7631,139.45,139.38,24.482]
[1641720887503,10.7631,139.45,139.39,0.25]
[1641720892107,4.04693588,139.47,139.39,0.25]
[1641720892307,4.04693588,139.47,139.39,10.752]
[1641720892511,4.04693588,139.47,139.39,21.5144]
[1641720892909,4.04693588,139.51,139.4,10.64]
[1641720893110,10.7589,139.5,139.41,38.8627]
[1641720893311,10.7589,139.5,139.41,49.4927]
[1641720894914,10.7589,139.5,139.45,10.7584]
[1641720895713,10.7589,139.5,139.42,99.2645]
[1641720895913,10.7589,139.5,139.43,0.25]
[1641720896316,14.80493588,139.51,139.43,0.25]
[1641720896516,14.80493588,139.51,139.43,3.25]
[1641720897318,4.04693588,139.5,139.43,3.25]
[1641720897719,14.80563588,139.5,139.45,10.7587]
[1641720898218,4.04693588,139.5,139.45,10.7587]
[1641720899222,4.04693588,139.51,139.45,10.7587]
[1641720900924,14.80523588,139.51,139.44,10.7594]
[1641720901322,14.80523588,139.51,139.45,0.25]
[1641720901523,14.80523588,139.51,139.43,3.0]
[1641720901724,14.80523588,139.51,139.44,0.25]
[1641720901926,14.80523588,139.51,139.45,10.7581]
[1641720902125,14.80523588,139.51,139.44,0.25]
[1641720902927,4.04693588,139.5,139.44,21.3892]
[1641720903225,4.04693588,139.5,139.44,21.3992]
[1641720903426,4.04693588,139.5,139.45,3.25]
[1641720903751,4.04693588,139.52,139.45,10.826]
[1641720903950,4.04693588,139.52,139.46,0.26]
[1641720904550,4.04693588,139.52,139.48,35.8434]
[1641720904751,4.04693588,139.54,139.48,41.7654]
[1641720904950,4.04693588,139.54,139.49,3.25]
[1641720905556,4.04693588,139.54,139.49,0.25]
[1641720905850,4.04693588,139.54,139.49,36.092]
[1641720906051,4.04693588,139.54,139.5,3.0]
[1641720906256,4.04693588,139.54,139.52,10.7531]
[1641720906856,4.04693588,139.54,139.52,16.3401]
[1641720907056,6.08140147,139.57,139.54,37.0]
[1641720907254,6.08140147,139.6,139.54,37.0]
[1641720907455,6.08140147,139.6,139.55,3.25]
[1641720907657,6.08140147,139.6,139.55,11.278]
[1641720908161,74.2806,139.63,139.55,11.278]
[1641720908355,53.72877533,139.64,139.55,22.0238]
[1641720908556,53.72877533,139.64,139.55,21.7738]
[1641720908956,3.0,139.63,139.55,21.7738]
[1641720909156,53.72877533,139.64,139.55,21.7738]
[1641720909557,13.7492,139.63,139.55,18.7738]
[1641720910358,13.7492,139.63,139.51,10.38]
[1641720910359,4.04545234,139.62,139.51,10.38]
[1641720910558,30.18810221,139.61,139.51,10.38]
[1641720911159,35.8559,139.57,139.47,101.0663]
[1641720911361,27.48764157,139.56,139.47,101.0663]
[1641720911561,102.57515234,139.6,139.47,101.0663]
[1641720912059,10.755,139.56,139.47,101.0663]
[1641720912859,10.755,139.56,139.47,90.3097]
[1641720914362,10.755,139.56,139.48,0.25]
[1641720914564,10.7538,139.57,139.48,3.25]
[1641720914763,10.7538,139.57,139.48,0.25]
[1641720914962,98.5297,139.6,139.49,3.0]
[1641720915261,98.5297,139.6,139.53,10.752]
[1641720915462,6.08140147,139.61,139.52,7.121]
[1641720915665,10.7504,139.62,139.52,42.9535]
[1641720915866,32.52807969,139.63,139.52,7.121]
[1641720916064,3.0,139.61,139.52,7.121]
[1641720916263,32.52807969,139.63,139.52,7.121]
[1641720916466,3.0,139.62,139.52,10.7524]
[1641720916664,7.04214297,139.62,139.52,10.7524]
[1641720917067,7.04214297,139.62,139.53,3.0]
[1641720917366,4.04214297,139.61,139.52,30.154]
[1641720917565,4.04214297,139.61,139.52,33.154]
[1641720918170,4.04214297,139.61,139.56,10.7494]
[1641720918368,3.0,139.62,139.56,10.7494]
[1641720918569,3.0,139.63,139.56,10.7494]
[1641720919172,13.7491,139.63,139.56,10.7494]
[1641720919372,13.7491,139.63,139.54,10.7507]
[1641720919973,4.04056024,139.62,139.52,26.475]
[1641720920173,3.0,139.61,139.52,23.475]
[1641720920379,10.7521,139.59,139.52,23.475]
[1641720920578,3.0,139.61,139.52,34.2271]
[1641720920975,3.0,139.61,139.51,10.38]
[1641720921175,3.0,139.61,139.48,10.38]
[1641720921376,3.0,139.61,139.44,10.38]
[1641720921377,10.7571,139.55,139.44,10.38]
[1641720921578,3.0,139.54,139.44,86.6869]
[1641720922181,3.0,139.54,139.44,110.0187]
[1641720922376,27.9667,139.55,139.44,110.0187]
[1641720922778,10.7576,139.52,139.46,10.7574]
[1641720923580,27.9667,139.55,139.46,10.7574]
[1641720923981,10.7573,139.53,139.46,10.7574]
[1641720924382,27.9667,139.55,139.47,0.25]
[1641720924782,24.9667,139.55,139.51,10.7531]
[1641720924982,24.8531,139.59,139.51,10.7531]
[1641720925381,49.06412659,139.59,139.49,23.0591]
[1641720925584,49.06412659,139.59,139.5,0.25]
[1641720925982,24.8531,139.59,139.5,11.0042]
[1641720926184,10.753,139.58,139.5,11.0042]
[1641720926985,24.8531,139.59,139.5,11.0042]
[1641720927884,35.6053,139.59,139.5,11.0042]
[1641720928685,10.7522,139.59,139.5,11.0042]
[1641720928885,10.7522,139.59,139.53,10.7521]
[1641720929487,10.7522,139.59,139.54,3.0]
[1641720931318,42.218365,139.59,139.5,79.0675]
[1641720931512,10.7545,139.56,139.49,23.0591]
[1641720931813,3.0,139.55,139.48,10.38]
[1641720932010,3.0,139.55,139.49,3.0]
[1641720932611,26.69416423,139.56,139.49,3.0]
[1641720932813,24.0139,139.6,139.49,3.0]
[1641720933014,3.0,139.57,139.49,3.0]
[1641720933213,3.0,139.57,139.48,10.38]
[1641720933414,3.0,139.57,139.43,10.38]
[1641720933615,39.94225772,139.57,139.43,10.38]
[1641720933813,29.07284219,139.56,139.43,10.38]
[1641720934014,3.0,139.55,139.43,10.38]
[1641720934213,25.6323,139.55,139.43,10.38]
[1641720934415,28.7823,139.55,139.44,0.25]
[1641720934615,35.8646,139.53,139.44,11.0092]
[1641720935013,25.7823,139.55,139.44,11.0092]
[1641720935214,27.37314773,139.53,139.44,11.0092]
[1641720935414,27.37314773,139.53,139.44,33.8719]
[1641720936015,10.7579,139.52,139.44,33.8719]
[1641720938016,3.0,139.51,139.44,33.8719]
[1641720938215,10.7598,139.49,139.44,33.8719]
[1641720938617,22.6323,139.55,139.45,3.0]
[1641720938816,6.08140147,139.58,139.5,10.7548]
[1641720939017,6.08140147,139.58,139.45,3.0]
[1641720939018,6.08140147,139.58,139.46,0.25]
[1641720939220,10.7555,139.55,139.46,60.6557]
[1641720939418,3.0,139.57,139.46,24.8066]
[1641720939721,2.02925261,139.52,139.47,3.0]
[1641720939922,2.02925261,139.52,139.48,0.25]
[1641720940420,2.02925261,139.54,139.5,10.7542]
[1641720941219,2.02925261,139.53,139.5,10.7542]
[1641720942019,2.02925261,139.54,139.5,10.7542]
[1641720944020,2.02925261,139.55,139.5,10.7542]
[1641720944622,2.02925261,139.55,139.49,10.7558]
[1641720944821,2.02925261,139.54,139.49,21.3858]
[1641720945021,2.02925261,139.54,139.49,21.1358]
[1641720945520,2.02925261,139.53,139.49,21.1358]
[1641720946521,2.02925261,139.53,139.49,10.38]
[1641720946922,2.02925261,139.52,139.49,10.38]
[1641720947120,2.02925261,139.52,139.46,47.9424]
[1641720947823,10.7584,139.51,139.46,58.7005]
[1641720948220,10.7584,139.51,139.46,47.9424]
[1641720948423,12.78765261,139.51,139.46,47.9424]
[1641720950822,12.78765261,139.51,139.46,58.7006]
[1641720951824,12.78765261,139.51,139.45,101.0369]
[1641720952024,2.02925261,139.51,139.45,90.2778]
[1641720952424,2.02925261,139.51,139.45,10.38]
[1641720953030,2.02925261,139.51,139.47,10.7571]
[1641720953430,2.02925261,139.51,139.45,10.38]
[1641720954032,2.02925261,139.51,139.45,21.139]
[1641720954232,10.7579,139.51,139.45,21.139]
[1641720954432,10.7579,139.51,139.45,10.38]
[1641720954933,12.78715261,139.51,139.45,10.38]
[1641720955747,10.7579,139.51,139.45,10.38]
[1641720957066,12.78665261,139.52,139.45,10.38]
[1641720957770,12.78665261,139.52,139.45,21.1389]
[1641720959273,2.02925261,139.51,139.45,21.1389]
[1641720959973,12.78735261,139.51,139.45,22.79235313]
[1641720960575,12.78735261,139.51,139.45,12.03345313]
[1641720960774,12.78735261,139.51,139.45,10.38]
[1641720962577,12.78735261,139.51,139.46,10.7582]
[1641720963681,12.78735261,139.51,139.45,10.38]
[1641720964080,29.91051302,139.5,139.45,10.38]
[1641720964283,10.7608,139.48,139.45,10.38]
[1641720964480,6.06439994,139.47,139.45,10.38]
[1641720964679,6.06439994,139.47,139.42,76.2538]
[1641720964879,6.06439994,139.47,139.41,34.2317]
[1641720965081,3.0,139.46,139.41,23.8517]
[1641720965280,2.02925261,139.49,139.39,23.3975]
[1641720965481,38.65726164,139.44,139.39,23.3975]
[1641720965682,38.65726164,139.44,139.38,12.29096389]
[1641720965895,3.0,139.46,139.38,10.38]
[1641720966084,2.02925261,139.47,139.38,10.38]
[1641720966482,12.79085261,139.47,139.39,3.0]
[1641720966682,12.79085261,139.47,139.39,3.25]
[1641720966883,12.79085261,139.47,139.41,10.7616]
[1641720967082,2.02925261,139.46,139.41,10.7616]
[1641720967915,12.79085261,139.47,139.41,10.7616]
[1641720968116,12.79085261,139.47,139.39,26.3713]
[1641720968316,12.79085261,139.47,139.39,23.3713]
[1641720969320,12.79085261,139.47,139.39,23.1213]
[1641720969720,12.79085261,139.47,139.36,83.218]
[1641720969921,37.64345261,139.47,139.36,83.218]
[1641720970120,5.02925261,139.46,139.36,83.218]
[1641720970320,10.7657,139.42,139.36,93.9837]
[1641720970521,3.0,139.41,139.36,10.38]
[1641720970722,24.8512,139.45,139.36,10.38]
[1641720971225,26.88045261,139.45,139.36,10.38]
[1641720971424,10.7647,139.43,139.36,21.1457]
[1641720971823,26.88045261,139.45,139.36,21.1457]
[1641720972025,24.8512,139.45,139.37,3.25]
[1641720972425,81.79655261,139.46,139.37,3.25]
[1641720972624,13.7637,139.45,139.39,10.763]
[1641720973025,25.43045261,139.47,139.39,10.763]
[1641720973225,2.02925261,139.47,139.39,10.763]
[1641720973625,31.00337105,139.48,139.39,10.763]
[1641720973829,10.7622,139.47,139.41,10.7622]
[1641720975027,10.7622,139.47,139.41,10.2622]
[1641720975228,2.02925261,139.48,139.41,10.2622]
[1641720975427,2.02925261,139.48,139.41,17.5392]
[1641720975628,2.02925261,139.48,139.44,10.7598]
[1641720976330,2.02925261,139.48,139.44,18.3688]
[1641720977329,2.02925261,139.5,139.44,18.3688]
[1641720979032,2.02925261,139.5,139.44,7.609]
[1641720979332,2.02925261,139.5,139.42,24.7513]
[1641720979937,2.02925261,139.49,139.42,24.7513]
[1641720980234,10.7612,139.48,139.42,24.7513]
[1641720980734,12.79045261,139.48,139.42,24.7513]
[1641720981234,2.02925261,139.48,139.42,24.7513]
[1641720982036,2.02925261,139.48,139.42,35.5122]
[1641720982736,12.79035261,139.48,139.42,35.5122]
[1641720983640,2.02925261,139.48,139.42,35.5122]
[1641720985339,2.02925261,139.49,139.42,35.5122]
[1641720986142,2.02925261,139.48,139.42,35.5122]
[1641720987975,2.02925261,139.48,139.43,0.25]
[1641720988172,2.02925261,139.48,139.45,10.7556]
[1641720988673,2.02925261,139.51,139.46,3.0]
[1641720988870,2.02925261,139.51,139.47,0.25]
[1641720989078,2.02925261,139.51,139.47,3.25]
[1641720989574,105.395,139.59,139.49,10.7536]
[1641720989575,2.02925261,139.52,139.49,10.7536]
[1641720989773,2.02925261,139.52,139.49,19.1806]
[1641720989972,2.02925261,139.52,139.5,3.25]
[1641720990173,2.02925261,139.52,139.5,39.0878]
[1641720990372,2.02925261,139.55,139.5,39.0878]
[1641720990571,2.02925261,139.55,139.52,10.7485]
[1641720990773,2.02925261,139.55,139.52,17.0025]
[1641720990978,1.52925261,139.55,139.53,3.0]
[1641720991372,6.08140147,139.61,139.53,38.8313]
[1641720991574,6.08140147,139.61,139.56,10.7497]
[1641720991974,6.08140147,139.61,139.56,10.2497]
[1641720992174,10.13407282,139.61,139.56,10.2497]
[1641720992973,10.13407282,139.61,139.54,10.7512]
[1641720994577,4.05267135,139.61,139.54,10.7512]
[1641720994775,14.80327135,139.61,139.54,10.7512]
[1641720995380,10.7506,139.61,139.54,10.7512]
[1641720995778,4.05267135,139.63,139.55,0.25]
[1641720996076,46.4304,139.64,139.57,10.7494]
[1641720996077,10.7497,139.62,139.57,10.7494]
[1641720996783,23.03326153,139.65,139.57,10.7494]
[1641720996977,3.0,139.64,139.57,10.7494]
[1641720997280,10.7497,139.62,139.57,10.7494]
[1641720997682,10.7497,139.62,139.54,109.4206]
[1641720997880,10.7497,139.62,139.51,10.38]
[1641720998079,3.0,139.61,139.51,10.38]
[1641720998378,31.18122032,139.59,139.51,10.38]
[1641720998579,3.0,139.58,139.51,10.38]
[1641720999479,13.7527,139.58,139.51,10.38]
[1641721000081,13.7527,139.58,139.52,0.25]
[1641721000683,13.2527,139.58,139.49,10.38]
[1641721000884,13.2527,139.58,139.5,0.25]
[1641721001081,13.2527,139.58,139.49,10.38]
[1641721001282,13.2527,139.58,139.46,10.38]
[1641721001484,1.61982766,139.57,139.46,10.38]